bitfinex-derivatives/quotes_ETHF0:USTF0_20230402
["timestamp","ask_amount","ask_price","bid_price","bid_amount"]
[1680445603161,1.15357197,1816.2,1816.1,1.4428577]
[1680445603365,1.15357197,1816.2,1816.1,0.57731359]
[1680445604061,1.15357197,1816.2,1816.1,1.1317488]
[1680445604262,5.36137197,1816.2,1816.1,1.1317488]
[1680445604464,5.65423068,1816.2,1816.1,1.1317488]
[1680445604657,5.65423068,1816.2,1816.1,0.57731359]
[1680445604861,5.65423068,1816.2,1816.0,1.4428577]
[1680445605164,5.65423068,1816.2,1816.0,0.57731359]
[1680445605165,2.15367145,1816.1,1816.0,0.57731359]
[1680445607067,2.15367145,1816.1,1816.0,0.95853952]
[1680445607265,2.15367145,1816.1,1816.0,0.38122593]
[1680445607768,2.15367145,1816.1,1815.9,1.4428577]
[1680445607963,4.36147145,1816.0,1815.9,0.57731359]
[1680445608161,5.36147145,1816.0,1815.8,0.57731359]
[1680445608469,4.36147145,1816.0,1815.9,0.34175057]
[1680445608672,4.36147145,1816.0,1815.8,0.57731359]
[1680445608968,4.36147145,1816.0,1815.9,0.34175169]
[1680445609159,4.36147145,1816.0,1815.8,0.57731359]
[1680445609564,4.36147145,1816.0,1815.9,0.34175249]
[1680445609768,4.36147145,1816.0,1815.8,0.57731359]
[1680445609969,4.36147145,1816.0,1815.9,0.34175335]
[1680445610365,4.36147145,1816.0,1815.8,0.57731359]
[1680445610570,4.36147145,1816.0,1815.9,0.34175427]
[1680445611277,4.36147145,1816.0,1815.8,0.57731359]
[1680445611467,4.36147145,1816.0,1815.9,0.34175568]
[1680445612476,3.2078,1816.0,1815.7,0.57731359]
[1680445612673,3.2078,1816.0,1815.8,0.34175765]
[1680445621978,2.15367145,1816.1,1815.8,0.34175765]
[1680445621979,3.2078,1816.1,1815.8,0.34175765]
[1680445622175,4.36147145,1816.1,1815.8,0.34175765]
[1680445622380,3.2078,1816.1,1815.8,0.34175765]
[1680445622982,4.36147145,1816.1,1815.8,0.34175765]
[1680445623281,3.2078,1816.1,1815.8,0.34175765]
[1680445625378,4.36147145,1816.1,1815.8,0.34175765]
[1680445625583,3.2078,1816.1,1815.8,0.34175765]
[1680445628574,0.57567909,1816.0,1815.8,0.34175765]
[1680445629179,0.57567909,1815.9,1815.8,0.34175765]
[1680445629379,0.57567909,1816.0,1815.8,0.34175765]
[1680445632388,0.57567909,1815.9,1815.8,0.34175765]
[1680445632580,0.57567909,1816.0,1815.8,0.34175765]
[1680445633284,0.57567909,1816.0,1815.8,0.91907124]
[1680445633888,1.0,1816.1,1815.8,0.34175765]
[1680445633889,0.57567909,1815.9,1815.8,0.34175765]
[1680445638691,0.57567909,1815.9,1815.8,0.91907124]
[1680445638892,0.57567909,1815.9,1815.8,0.34175765]
[1680445639195,0.57567909,1815.9,1815.8,0.91907124]
[1680445641595,3.2078,1815.9,1815.8,0.34175765]
[1680445641797,3.78409124,1815.9,1815.8,0.34175765]
[1680445641996,3.2078,1815.9,1815.8,0.34175765]
[1680445642196,3.2078,1815.9,1815.8,0.91907124]
[1680445643298,1.15367145,1816.0,1815.8,0.91907124]
[1680445643499,3.2078,1815.9,1815.8,0.91907124]
[1680445643702,0.57642848,1815.9,1815.8,0.91907124]
[1680445644288,1.15367145,1816.0,1815.8,1.78461535]
[1680445644492,1.15367145,1816.0,1815.8,0.91907124]
[1680445644704,1.15367145,1816.0,1815.8,1.78461535]
[1680445645802,2.15367145,1816.1,1815.9,0.57724697]
[1680445646002,2.15367145,1816.1,1816.0,0.34181034]
[1680445646201,1.15367145,1816.1,1816.0,0.34181034]
[1680445646502,1.15367145,1816.1,1815.9,0.57724697]
[1680445646503,5.65423068,1816.2,1815.9,0.57724697]
[1680445646707,1.15347209,1816.0,1815.9,0.57724697]
[1680445647102,1.15347209,1816.0,1815.9,0.91905889]
[1680445647705,1.15347209,1816.1,1815.9,0.91905889]
[1680445647904,1.15347209,1816.0,1815.9,0.91905889]
[1680445648307,1.15347209,1816.0,1815.9,1.784603]
[1680445649205,1.15347209,1816.0,1815.9,0.91905889]
[1680445649607,1.15347209,1816.0,1815.9,1.784603]
[1680445649912,1.15347209,1816.0,1815.9,0.91905889]
[1680445650618,1.15347209,1816.0,1815.9,1.784603]
[1680445650813,1.15347209,1816.0,1815.9,1.20735603]
[1680445661622,1.15347209,1816.0,1815.9,1.20151756]
[1680445662125,0.86578395,1816.0,1815.9,1.49188509]
[1680445662323,0.86578395,1816.0,1815.9,4.69968509]
[1680445663118,0.86578395,1816.0,1815.9,1.49188509]
[1680445663323,0.86578395,1816.0,1815.9,5.3825663]
[1680445663523,0.86578395,1816.0,1815.9,4.69968509]
[1680445663830,1.44284801,1816.0,1815.9,4.69968509]
[1680445664224,1.44284994,1816.0,1815.9,4.69968509]
[1680445664526,0.86578395,1816.0,1815.9,4.69968509]
[1680445664726,0.86578395,1816.0,1815.9,1.49188509]
[1680445665227,0.86578395,1816.0,1815.9,4.69968509]
[1680445665729,0.57697974,1816.0,1815.9,4.69968509]
[1680445665932,1.44276369,1816.0,1815.9,4.69968509]
[1680445666126,0.57697974,1816.0,1815.9,4.69968509]
[1680445666326,1.44276369,1816.0,1815.9,4.69968509]
[1680445666531,1.44276369,1816.0,1815.9,1.49188509]
[1680445667228,1.44275739,1816.0,1815.9,1.49188509]
[1680445667421,1.44275739,1816.0,1815.9,4.69968509]
[1680445667622,0.57697344,1816.0,1815.9,4.69968509]
[1680445669531,0.57697344,1816.0,1815.9,3.54377345]
[1680445670931,0.57697344,1816.0,1815.9,4.69968509]
[1680445671129,0.57697344,1816.0,1815.9,3.54377345]
[1680445674430,1.44275739,1816.2,1815.9,6.82200673]
[1680445674728,0.86578395,1816.2,1816.1,4.07376562]
[1680445675229,0.57683943,1816.2,1816.1,4.07373704]
[1680445675526,0.57683943,1816.2,1816.1,3.2078]
[1680445675734,0.57683943,1816.2,1816.1,4.07372732]
[1680445677225,0.57683943,1816.2,1816.1,3.2078]
[1680445677426,1.44462338,1816.3,1816.1,3.2078]
[1680445677622,1.44462338,1816.3,1816.2,1.8655897]
[1680445677835,0.57883943,1816.3,1816.2,1.57685866]
[1680445678030,0.57883943,1816.3,1816.2,1.8655897]
[1680445678527,0.57883943,1816.3,1816.2,0.8655897]
[1680445678729,0.57883943,1816.3,1816.2,1.44244171]
[1680445678927,0.57883943,1816.3,1816.2,0.8655897]
[1680445679127,0.57883943,1816.3,1816.2,1.35104443]
[1680445679335,0.57883943,1816.3,1816.2,2.35104443]
[1680445679636,0.57883943,1816.3,1816.2,1.92788086]
[1680445679833,0.57883943,1816.3,1816.2,1.06229116]
[1680445680034,0.002,1816.3,1816.2,1.06229116]
[1680445680529,0.57883943,1816.3,1816.2,2.06229116]
[1680445680732,0.57883943,1816.3,1816.2,1.06229116]
[1680445681235,0.002,1816.3,1816.2,2.92788086]
[1680445681437,0.002,1816.3,1816.2,2.06229116]
[1680445682632,0.57883943,1816.3,1816.2,2.06229116]
[1680445682832,0.57883943,1816.3,1816.2,1.06229116]
[1680445683126,0.002,1816.3,1816.2,2.92788086]
[1680445683528,0.002,1816.3,1816.2,2.35104443]
[1680445683730,0.002,1816.3,1816.2,2.64007556]
[1680445684234,0.57683943,1816.5,1816.2,2.64007556]
[1680445684432,0.57683943,1816.5,1816.4,0.57660782]
[1680445685234,0.57683943,1816.5,1816.3,3.78440782]
[1680445685943,1.44262338,1816.6,1816.3,4.64931955]
[1680445686143,0.57683943,1816.5,1816.3,3.78440782]
[1680445687131,0.57683943,1816.6,1816.4,0.57660782]
[1680445687442,0.57683943,1816.6,1816.4,1.0]
[1680445687639,0.57683943,1816.6,1816.3,3.78440782]
[1680445692334,1.44262338,1816.7,1816.3,3.78440782]
[1680445693049,0.57683943,1816.7,1816.3,3.78440782]
[1680445694150,0.57683943,1816.7,1816.4,1.48548406]
[1680445694339,0.57683943,1816.7,1816.4,0.48548406]
[1680445694542,0.57683943,1816.7,1816.3,3.78440782]
[1680445696458,2.44262338,1816.7,1816.2,1.44151955]
[1680445696648,3.2078,1816.6,1816.2,1.44151955]
[1680445696848,3.2078,1816.6,1816.3,0.57660782]
[1680445697146,1.57683943,1816.7,1816.2,1.44151955]
[1680445697650,1.0,1816.5,1816.2,1.44151955]
[1680445697842,3.2078,1816.4,1816.1,0.57660782]
[1680445698046,1.0,1816.3,1816.1,0.57660782]
[1680445698249,3.2078,1816.4,1816.1,0.57660782]
[1680445698653,3.2078,1816.4,1816.0,1.44151955]
[1680445698849,3.78463943,1816.4,1816.0,1.44151955]
[1680445699648,3.2078,1816.4,1816.1,0.57660782]
[1680445700058,3.78463943,1816.4,1816.0,0.57660782]
[1680445701752,1.0,1816.3,1816.0,0.57660782]
[1680445702257,3.2078,1816.2,1816.0,0.57660782]
[1680445706962,0.57683943,1816.3,1816.1,0.57660782]
[1680445707261,3.78463943,1816.3,1816.0,1.44151955]
[1680445707657,0.57683943,1816.3,1816.1,0.57660782]
[1680445707957,3.78463943,1816.3,1816.1,0.57660782]
[1680445708456,0.57683943,1816.3,1816.1,0.57660782]
[1680445708660,3.78463943,1816.3,1816.1,0.57660782]
[1680445709159,3.78463943,1816.3,1816.2,0.48607259]
[1680445709359,3.78463943,1816.3,1816.1,0.57660782]
[1680445710761,0.57683943,1816.3,1816.1,0.57660782]
[1680445711260,3.78463943,1816.3,1816.1,0.57660782]
[1680445711561,0.57683943,1816.3,1816.1,0.57660782]
[1680445712162,3.78463943,1816.3,1816.1,0.57660782]
[1680445712853,0.57683943,1816.3,1816.1,0.57660782]
[1680445713055,3.78463943,1816.3,1816.1,0.57660782]
[1680445713255,0.57683943,1816.3,1816.1,0.57660782]
[1680445713554,3.78463943,1816.3,1816.1,0.57660782]
[1680445714166,0.57683943,1816.3,1816.1,0.57660782]
[1680445715964,3.78463943,1816.3,1816.1,0.57660782]
[1680445716162,0.57683943,1816.3,1816.1,0.57660782]
[1680445716865,1.44262338,1816.3,1816.1,0.57660782]
[1680445717362,0.57683943,1816.3,1816.1,0.57660782]
[1680445717562,0.57683943,1816.3,1816.2,0.57660782]
[1680445717961,1.44262338,1816.3,1816.1,1.44151955]
[1680445718159,0.57683943,1816.2,1816.1,1.44151955]
[1680445718367,0.57683943,1816.2,1816.1,0.57660782]
[1680445718668,4.65042338,1816.3,1816.1,1.44151955]
[1680445718862,0.57683943,1816.2,1816.1,0.57660782]
[1680445719166,4.65042338,1816.3,1816.1,0.57660782]
[1680445719363,0.57683943,1816.2,1816.1,0.57660782]
[1680445719666,0.86578395,1816.3,1816.1,0.57660782]
[1680445719667,0.57683943,1816.3,1816.1,0.86491173]
[1680445719866,0.57683943,1816.3,1816.2,0.57681762]
[1680445720268,1.44262338,1816.3,1816.2,0.57681762]
[1680445720469,0.86578395,1816.3,1816.2,0.57681762]
[1680445721778,1.44225584,1816.3,1816.2,0.57681762]
[1680445721977,0.86578395,1816.3,1816.2,0.57681762]
[1680445722374,1.44226983,1816.3,1816.2,0.57681762]
[1680445722574,0.86578395,1816.3,1816.2,0.57681762]
[1680445723682,0.86578395,1816.3,1816.1,0.57681762]
[1680445723979,0.57643731,1816.2,1816.1,0.57681762]
[1680445729989,3.78423731,1816.2,1816.1,0.57681762]
[1680445730182,4.07358395,1816.2,1816.1,0.57681762]
[1680445730376,4.07358395,1816.2,1816.0,1.44172935]
[1680445730678,0.57636829,1816.1,1816.0,0.57681762]
[1680445738895,0.57636829,1816.1,1816.0,0.86491173]
[1680445739089,0.57636829,1816.1,1816.0,1.35104298]
[1680445742296,0.86578395,1816.1,1816.0,0.48613125]
[1680445748613,1.44285319,1816.1,1816.0,1.64075208]
[1680445748901,1.44285319,1816.1,1816.0,0.48613125]
[1680445749105,0.86578395,1816.1,1816.0,0.48613125]
[1680445755002,0.57721647,1816.1,1816.0,1.64075208]
[1680445755408,0.5697858,1816.1,1816.0,1.64075208]
[1680445756111,0.5697858,1816.1,1816.0,2.32387146]
[1680445756406,0.86578395,1816.2,1816.0,2.32386565]
[1680445756611,0.86578395,1816.2,1816.0,1.64103083]
[1680445757114,0.86578395,1816.2,1816.1,1.15489958]
[1680445757503,0.86578395,1816.2,1816.1,1.64106671]
[1680445760708,0.86578395,1816.3,1816.1,1.64106671]
[1680445760909,0.86578395,1816.3,1816.2,0.86615233]
[1680445761113,2.15347209,1816.4,1816.2,0.86615233]
[1680445761330,2.15347209,1816.4,1816.3,0.57744191]
[1680445762217,4.2078,1816.4,1816.2,1.44359424]
[1680445762514,5.36249753,1816.4,1816.2,1.44359424]
[1680445762725,1.15469753,1816.4,1816.3,1.06361918]
[1680445763715,4.36249753,1816.4,1816.3,0.57744191]
[1680445763915,4.36249753,1816.4,1816.2,1.44359424]
[1680445764115,1.15469753,1816.4,1816.3,1.06362204]
[1680445764415,1.15469753,1816.4,1816.3,0.57744191]
[1680445765514,1.15469753,1816.4,1816.3,1.06362455]
[1680445766215,1.15469753,1816.4,1816.3,0.57744191]
[1680445767611,1.15469753,1816.4,1816.3,1.0636291]
[1680445768014,1.15469753,1816.4,1816.3,0.57744191]
[1680445768315,1.15469753,1816.4,1816.3,1.06362999]
[1680445768717,1.15469753,1816.4,1816.3,0.57744191]
[1680445769421,1.15469753,1816.4,1816.3,1.06363229]
[1680445769716,1.15469753,1816.4,1816.3,0.57744191]
[1680445770114,1.15469753,1816.4,1816.2,1.44359424]
[1680445770315,1.15469753,1816.4,1816.3,0.57744191]
[1680445770517,1.15469753,1816.4,1816.3,1.06363433]
[1680445770816,1.15469753,1816.4,1816.3,0.57744191]
[1680445772316,1.15469753,1816.4,1816.3,1.06363818]
[1680445772717,1.15469753,1816.4,1816.3,0.57744191]
[1680445773523,1.15469753,1816.4,1816.3,1.06364018]
[1680445773722,1.15469753,1816.5,1816.3,1.06364018]
[1680445774811,1.15469753,1816.4,1816.3,1.06364018]
[1680445775223,1.15469753,1816.5,1816.3,1.06364018]
[1680445775718,1.15469753,1816.4,1816.3,1.06364018]
[1680445775913,0.86583778,1816.4,1816.3,1.06364018]
[1680445776820,1.15469753,1816.5,1816.3,1.06364018]
[1680445777925,1.15469753,1816.4,1816.3,1.06364018]
[1680445778719,2.15469753,1816.4,1816.3,1.06364018]
[1680445779114,2.15469753,1816.4,1816.3,0.48619827]
[1680445779317,2.15469753,1816.4,1816.3,1.06364018]
[1680445785229,1.15469753,1816.4,1816.3,1.06364018]
[1680445785726,2.15469753,1816.5,1816.3,1.06364018]
[1680445786329,1.15469753,1816.4,1816.3,1.06364018]
[1680445788734,2.15469753,1816.5,1816.3,1.06364018]
[1680445789031,1.15469753,1816.5,1816.3,1.06364018]
[1680445790424,4.36249753,1816.4,1816.3,1.06364018]
[1680445790624,3.2078,1816.4,1816.3,1.06364018]
[1680445791034,4.36249753,1816.4,1816.3,1.06364018]
[1680445795934,4.36249753,1816.4,1816.3,1.92979251]
[1680445797539,4.36249753,1816.4,1816.3,1.06364018]
[1680445797740,4.36249753,1816.4,1816.3,1.92979251]
[1680445798539,4.36249753,1816.4,1816.3,1.06364018]
[1680445799038,4.36249753,1816.4,1816.3,1.92979251]
[1680445799733,4.36249753,1816.4,1816.3,1.3523506]
[1680445800832,4.36249753,1816.4,1816.3,1.92972573]
[1680445801035,4.36249753,1816.4,1816.3,1.3523506]
[1680445802340,4.36249753,1816.4,1816.3,1.92978688]
[1680445802531,4.99048866,1816.4,1816.3,1.06363455]
[1680445802735,5.99048866,1816.4,1816.3,1.06363455]
[1680445802936,5.65423068,1816.4,1816.3,1.06363455]
[1680445805239,4.54407983,1816.4,1816.3,0.48619827]
[1680445805933,17.75734124,1816.4,1816.3,0.48619827]
[1680445806437,17.75734124,1816.4,1816.2,0.57743628]
[1680445806738,2.7807207,1816.3,1816.2,0.57743628]
[1680445807037,2.44444087,1816.3,1816.1,0.57743628]
[1680445807237,5.36300053,1816.2,1816.1,0.57743628]
[1680445808341,5.98848552,1816.2,1816.0,0.57743628]
[1680445808541,2.1552624,1816.1,1816.0,0.57743628]
[1680445809748,2.1552624,1816.1,1816.0,0.91315874]
[1680445810048,2.1552624,1816.1,1816.0,0.33572246]
[1680445810750,2.1552624,1816.1,1815.9,1.44358861]
[1680445811048,4.07379288,1816.0,1815.9,0.57743628]
[1680445812143,5.3630624,1816.0,1815.9,0.57743628]
[1680445812350,5.3630624,1816.0,1815.8,0.57743628]
[1680445812648,1.86554785,1815.9,1815.8,0.57743628]
[1680445813152,1.86554785,1815.9,1815.7,0.57743628]
[1680445813448,4.2078,1815.8,1815.7,0.57743628]
[1680445815942,4.2078,1815.8,1815.6,1.44358861]
[1680445816447,1.0,1815.7,1815.6,0.57743628]
[1680445817352,1.0,1815.7,1815.5,1.44358861]
[1680445817555,3.2078,1815.6,1815.5,1.44358861]
[1680445817756,3.2078,1815.6,1815.5,0.57743628]
[1680445818344,3.2078,1815.6,1815.5,0.6646711]
[1680445820253,3.2078,1815.6,1815.5,0.08723482]
[1680445820453,3.2078,1815.6,1815.5,0.6646711]
[1680445820752,3.2078,1815.6,1815.5,0.08723482]
[1680445823450,1.0,1815.7,1815.5,0.08723482]
[1680445823650,3.2078,1815.7,1815.5,0.08723482]
[1680445823846,4.2078,1815.8,1815.5,0.6646711]
[1680445824052,1.0,1815.9,1815.5,0.6646711]
[1680445824253,1.0,1815.9,1815.5,0.08723482]
[1680445824553,1.0,1815.9,1815.5,0.6646711]
[1680445827054,1.0,1815.9,1815.5,0.08723482]
[1680445827255,1.0,1815.9,1815.5,0.6646711]
[1680445829759,3.2078,1815.8,1815.5,0.08723482]
[1680445829957,1.0,1815.9,1815.5,0.08723482]
[1680445830158,3.2078,1815.8,1815.5,0.08723482]
[1680445830562,3.2078,1815.8,1815.5,0.6646711]
[1680445831156,1.0,1815.9,1815.5,0.6646711]
[1680445831661,1.0,1815.9,1815.5,3.8724711]
[1680445832061,1.0,1815.9,1815.5,3.86532594]
[1680445832656,1.0,1815.9,1815.5,0.65752594]
[1680445836369,1.0,1815.9,1815.5,3.86532594]
[1680445836969,1.0,1815.9,1815.5,0.65752594]
[1680445838567,1.0,1815.9,1815.5,3.86532594]
[1680445839667,3.2078,1815.8,1815.5,3.86532594]
[1680445840169,1.0,1815.9,1815.5,3.86532594]
[1680445841866,1.0,1815.9,1815.6,0.57743628]
[1680445842370,1.0,1815.9,1815.7,0.08636796]
[1680445843268,1.86554785,1815.9,1815.7,0.08636796]
[1680445843664,1.86554785,1815.9,1815.6,0.57743628]
[1680445845365,3.2078,1815.8,1815.6,0.57743628]
[1680445845659,1.0,1815.7,1815.6,0.57743628]
[1680445848272,1.0,1815.7,1815.6,0.66381082]
[1680445850474,4.07334785,1815.8,1815.6,0.66381082]
[1680445850779,0.86554785,1815.8,1815.6,0.66381082]
[1680445851069,0.86554785,1815.8,1815.7,0.57743628]
[1680445853073,0.86554785,1815.8,1815.7,0.86615233]
[1680445853771,0.86554785,1815.8,1815.7,4.07395233]
[1680445855179,0.86554785,1815.8,1815.7,3.2078]
[1680445855781,0.86554785,1815.8,1815.7,4.36269958]
[1680445856082,0.86554785,1815.8,1815.7,3.2078]
[1680445856981,0.86554785,1815.8,1815.7,4.36269958]
[1680445860575,0.86554785,1815.9,1815.7,3.89073795]
[1680445860776,0.86554785,1815.9,1815.8,1.15547134]
[1680445861881,4.07334785,1816.0,1815.8,1.83838778]
[1680445862082,4.3630624,1816.0,1815.9,0.86657493]
[1680445862679,1.1552624,1816.0,1815.9,0.86657493]
[1680445863681,1.1552624,1816.0,1815.9,0.95296633]
[1680445863880,0.86566651,1816.0,1815.9,0.95296633]
[1680445864986,0.86566894,1816.0,1815.9,0.95296633]
[1680445867994,0.86566894,1816.0,1815.9,1.53031437]
[1680445868188,0.86566894,1816.0,1815.9,0.95296633]
[1680445870184,0.86566894,1816.0,1815.9,1.53025602]
[1680445871396,0.86566894,1816.0,1815.9,0.66368109]
[1680445892013,0.86566894,1816.0,1815.9,1.53025602]
[1680445893016,0.86566894,1816.0,1815.9,0.95296633]
[1680445893723,0.57680232,1816.0,1815.9,0.95296633]
[1680445894019,0.57680232,1816.0,1815.9,4.69013867]
[1680445894216,0.57680232,1816.0,1815.9,5.69013867]
[1680445895018,0.57680232,1816.0,1815.9,4.69013867]
[1680445895217,0.57680232,1816.1,1815.9,5.37298803]
[1680445895416,0.57680232,1816.1,1816.0,0.86602981]
[1680445895620,0.57680232,1816.1,1815.9,4.44966274]
[1680445895815,0.57680232,1816.1,1816.0,1.15547134]
[1680445896720,0.57680232,1816.1,1816.0,2.15547134]
[1680445897018,0.57680232,1816.1,1815.9,4.44966274]
[1680445897224,0.57680232,1816.1,1816.0,1.15547134]
[1680445898316,0.57680232,1816.2,1816.0,1.15547134]
[1680445898518,0.57680232,1816.2,1816.1,0.86564935]
[1680445899221,1.44247126,1816.2,1816.1,0.86564935]
[1680445899418,1.44247126,1816.2,1816.1,4.07344935]
[1680445899618,0.57680232,1816.2,1816.1,4.07344935]
[1680445899921,0.57680232,1816.2,1816.1,0.86564935]
[1680445900120,0.57680232,1816.2,1816.1,4.07344935]
[1680445901125,0.57680232,1816.2,1816.1,0.86564935]
[1680445901630,0.57680232,1816.2,1816.1,0.85829488]
[1680445902123,0.57680232,1816.2,1816.1,4.06609488]
[1680445903723,0.57680232,1816.2,1816.1,0.85829488]
[1680445904323,0.57680232,1816.2,1816.1,1.43519021]
[1680445904925,0.57680232,1816.2,1816.1,4.06609488]
[1680445907129,1.44247126,1816.3,1816.1,4.06609488]
[1680445907328,1.44247126,1816.3,1816.2,0.57684691]
[1680445907727,0.86566894,1816.3,1816.2,0.57684691]
[1680445908238,1.44178302,1816.3,1816.2,0.57684691]
[1680445908531,1.44178302,1816.3,1816.2,0.9807559]
[1680445909134,1.44178524,1816.3,1816.2,0.9807559]
[1680445909636,1.44178524,1816.3,1816.2,0.40390899]
[1680445909832,1.44178524,1816.3,1816.1,4.64294179]
[1680445910035,0.57609758,1816.2,1816.1,4.64294179]
[1680445910435,2.01788282,1816.3,1816.1,4.64294179]
[1680445910631,1.15221388,1816.3,1816.2,0.57684691]
[1680445923342,1.15221388,1816.3,1816.2,1.0181129]
[1680445934047,2.01788282,1816.3,1816.2,1.0181129]
[1680445935148,2.01788282,1816.3,1816.2,0.44126599]
[1680445935456,2.01813653,1816.3,1816.1,3.2078]
[1680445935645,2.01813653,1816.3,1816.2,0.57709333]
[1680445935851,1.15254954,1816.3,1816.1,4.36327134]
[1680445936150,0.57643324,1816.2,1816.1,4.36327134]
[1680445938051,0.57643324,1816.2,1816.1,5.04606238]
[1680445938445,0.57643324,1816.2,1816.1,5.48735837]
[1680445938650,0.57643324,1816.2,1816.1,2.27955837]
[1680445938849,0.57643324,1816.2,1816.1,5.48735837]
[1680445940359,1.44210218,1816.2,1816.1,5.48735837]
[1680445942268,0.86566894,1816.2,1816.1,5.48735837]
[1680445943159,1.44261886,1816.2,1816.1,5.48735837]
[1680445943561,0.86566894,1816.2,1816.1,5.48735837]
[1680445944865,0.86566894,1816.2,1816.1,4.33188703]
[1680445949862,0.57696222,1816.2,1816.1,5.77134811]
[1680445952773,2.01874746,1816.3,1816.1,5.77134811]
[1680445952975,2.01874746,1816.3,1816.2,1.83816303]
[1680445953474,2.01874746,1816.3,1816.2,2.3805868]
[1680445953973,2.01874746,1816.3,1816.2,3.3805868]
[1680445954273,1.15307852,1816.3,1816.2,2.22521481]
[1680445954473,1.15307852,1816.3,1816.2,3.66467589]
[1680445956774,0.5761163,1816.3,1816.2,2.22521481]
[1680445957473,0.5761163,1816.3,1816.2,3.66467589]
[1680445957964,1.15307852,1816.3,1816.2,1.22521481]
[1680445958170,0.5761163,1816.3,1816.2,2.66467589]
[1680445958675,0.5761163,1816.3,1816.2,1.22521481]
[1680445959185,0.5761163,1816.3,1816.2,2.3799617]
[1680445959477,0.5761163,1816.3,1816.2,1.22521481]
[1680445959678,0.5761163,1816.3,1816.2,2.37996179]
[1680445960374,0.5761163,1816.3,1816.2,2.37995663]
[1680445966993,0.86566894,1816.5,1816.2,8.17267589]
[1680445967195,0.57652086,1816.6,1816.4,4.36226135]
[1680445967399,1.44130215,1816.7,1816.5,1.83702623]
[1680445967692,0.57652086,1816.7,1816.6,3.2078]
[1680445968397,0.57652086,1816.7,1816.6,4.80158379]
[1680445968592,1.44130215,1816.7,1816.6,4.80158379]
[1680445968994,0.57652086,1816.7,1816.6,4.80158379]
[1680445970898,0.57652086,1816.8,1816.6,4.80158379]
[1680445971099,0.57652086,1816.8,1816.7,0.57682719]
[1680445971489,0.57652086,1816.8,1816.7,1.4426098]
[1680445971687,0.57652086,1816.9,1816.7,0.57646012]
[1680445972492,1.44130215,1816.9,1816.7,0.57646012]
[1680445972691,0.57652086,1816.9,1816.8,3.2078]
[1680445973089,0.86478129,1816.9,1816.7,0.57646012]
[1680445973302,0.57588872,1816.9,1816.7,3.78426012]
[1680445973600,1.44067001,1816.9,1816.7,3.78426012]
[1680445973803,0.57588872,1816.9,1816.7,3.78426012]
[1680445976304,0.57588872,1816.9,1816.7,3.2078]
[1680445977496,0.57588872,1816.9,1816.7,3.78426012]
[1680445977798,0.57588872,1816.9,1816.7,3.2078]
[1680445982703,0.57588872,1816.9,1816.6,1.3044613]
[1680445983713,0.57588872,1816.9,1816.6,0.72800118]
[1680445984010,0.57588872,1816.9,1816.6,1.3044613]
[1680445986714,1.57588872,1816.9,1816.6,0.72800118]
[1680445987108,2.44067001,1816.9,1816.6,0.72800118]
[1680445987811,1.57588872,1816.9,1816.6,0.72800118]
[1680445988011,2.44067001,1816.9,1816.6,0.72800118]
[1680445988212,1.44067001,1816.9,1816.6,0.72800118]
[1680445988713,0.57588872,1816.9,1816.6,0.72800118]
[1680445989312,1.44067001,1817.0,1816.7,3.2078]
[1680445989515,1.44067001,1817.0,1816.6,2.17024391]
[1680445989814,0.57588872,1816.9,1816.8,0.7280602]
[1680445990113,0.57588872,1817.0,1816.8,0.7280602]
[1680445990316,0.57588872,1816.9,1816.8,0.7280602]
[1680445990511,1.44067001,1817.0,1816.8,0.7280602]
[1680445990813,0.57588872,1816.9,1816.8,0.7280602]
[1680445991404,0.57588872,1817.0,1816.8,0.7280602]
[1680445991604,0.57588872,1816.9,1816.8,0.7280602]
[1680445994411,0.57588872,1816.9,1816.6,0.57646012]
[1680445994612,0.57588872,1816.9,1816.7,3.2078]
[1680445997117,0.57588872,1816.9,1816.7,3.78426012]
[1680445997316,0.57588872,1816.9,1816.7,3.2078]
[1680445998317,0.57588872,1816.9,1816.8,0.72808368]
[1680445999419,1.44067001,1816.9,1816.8,0.72808368]
[1680445999719,0.57588872,1816.9,1816.8,0.72808368]
[1680446002911,1.44067001,1816.9,1816.8,0.72808368]
[1680446003213,0.57588872,1816.9,1816.8,0.72808368]
[1680446006819,0.57588872,1816.9,1816.8,1.3045438]
[1680446007722,1.44067001,1816.9,1816.8,1.3045438]
[1680446007914,0.57588872,1816.9,1816.8,1.3045438]
[1680446008115,1.44067001,1816.9,1816.8,1.3045438]
[1680446008312,0.57588872,1816.9,1816.8,1.3045438]
[1680446008517,0.86478129,1816.9,1816.8,1.3045438]
[1680446010424,0.57671234,1817.0,1816.8,7.23608368]
[1680446010627,0.57671234,1817.0,1816.9,4.36218414]
[1680446010827,0.57671234,1817.1,1816.9,5.36218414]
[1680446011126,1.44149363,1817.1,1817.0,0.86489847]
[1680446011327,0.57671234,1817.1,1817.0,1.86489847]
[1680446011529,1.44149363,1817.1,1817.0,0.86489847]
[1680446011827,1.44170418,1817.1,1817.0,0.86489847]
[1680446012124,0.86478129,1817.1,1817.0,0.86489847]
[1680446013327,0.86478129,1817.1,1817.0,1.76563037]
[1680446013726,0.86478129,1817.1,1817.0,2.34236627]
[1680446013924,0.86478129,1817.1,1817.0,1.76563037]
[1680446014225,0.86478129,1817.1,1817.0,2.34237099]
[1680446014927,0.86478129,1817.1,1817.0,1.76563037]
[1680446015330,0.86478129,1817.1,1817.0,1.47733296]
[1680446016217,0.86478129,1817.1,1817.0,2.34223143]
[1680446016528,0.86478129,1817.1,1817.0,1.47733296]
[1680446017231,0.86478129,1817.1,1817.0,2.34223143]
[1680446017427,0.86478129,1817.1,1817.0,1.47733296]
[1680446018326,0.86478129,1817.1,1817.0,2.34223143]
[1680446018728,0.86478129,1817.1,1817.0,2.34207556]
[1680446018930,0.86478129,1817.1,1817.0,1.47717709]
[1680446019736,1.44152993,1817.1,1817.0,1.47717709]
[1680446019937,0.86478129,1817.1,1817.0,1.47717709]
[1680446020434,1.4415091,1817.1,1817.0,1.47717709]
[1680446020832,0.86478129,1817.1,1817.0,1.47717709]
[1680446021031,1.44150896,1817.1,1817.0,1.47717709]
[1680446021232,0.57672767,1817.1,1817.0,1.47717709]
[1680446021734,1.44150896,1817.1,1817.0,1.47717709]
[1680446022139,0.57672767,1817.1,1817.0,1.47717709]
[1680446022537,0.57672767,1817.1,1817.0,2.34207556]
[1680446022732,0.57672767,1817.1,1817.0,1.47717709]
[1680446023936,1.44150896,1817.1,1817.0,1.47717709]
[1680446024441,0.86478129,1817.1,1817.0,1.47717709]
[1680446024741,1.44138663,1817.1,1817.0,1.47717709]
[1680446025134,0.86478129,1817.1,1817.0,1.47717709]
[1680446025641,4.07258129,1817.1,1816.9,0.57603703]
[1680446025939,4.07258129,1817.1,1816.7,4.36218414]
[1680446025940,4.65224087,1817.1,1817.0,0.54857837]
[1680446026144,4.97879647,1817.1,1817.0,0.54857837]
[1680446026342,4.97879647,1817.1,1816.7,0.57603703]
[1680446026641,0.57667927,1816.8,1816.7,0.57603703]
[1680446026937,0.8650189,1816.8,1816.6,0.57603703]
[1680446027143,0.57668767,1816.7,1816.6,0.57603703]